bitfinex/quotes_ETHUSD_20251118
["timestamp","ask_amount","ask_price","bid_price","bid_amount"]
[1763462798796,0.5458,3071.8,3071.1,0.1912]
[1763462798947,0.0049,3071.6,3071.1,0.6536]
[1763462799343,0.0049,3071.6,3071.2,0.4624]
[1763462799786,0.278,3071.8,3071.5,0.4779]
[1763462800837,0.2667,3071.6,3071.1,0.1912]
[1763462801037,0.278,3071.8,3071.7,0.4779]
[1763462801241,0.278,3071.8,3071.7,0.9403]
[1763462801442,0.5397,3071.8,3071.3,0.4624]
[1763462801747,0.278,3071.8,3071.7,0.4779]
[1763462802262,0.278,3071.8,3071.7,0.9403]
[1763462803972,0.278,3071.8,3071.7,1.345804]
[1763462804169,0.278,3071.8,3071.7,10.4655861]
[1763462804484,0.278,3071.8,3071.7,11.68735763]
[1763462805570,0.278,3071.8,3071.7,13.43948681]
[1763462805891,0.278,3071.8,3071.7,17.33948681]
[1763462806444,0.0009,3071.9,3071.8,1.31249664]
[1763462806645,0.0009,3071.9,3071.8,6.18535084]
[1763462806646,1.1759,3071.9,3071.8,6.18535084]
[1763462806846,1.451,3071.9,3071.8,8.09114202]
[1763462807086,1.451,3071.9,3071.8,11.49658782]
[1763462807296,1.175,3071.9,3071.8,11.49658782]
[1763462807596,0.002,3072.2,3071.8,11.49658782]
[1763462807884,0.002,3072.2,3072.1,11.88446444]
[1763462808091,1.177,3072.2,3072.1,13.11915088]
[1763462808289,1.177,3072.2,3072.1,13.58155088]
[1763462808586,1.453,3072.2,3072.1,13.58155088]
[1763462809168,1.453,3072.2,3072.1,3.61758308]
[1763462809477,1.4522,3072.2,3072.1,2.38289664]
[1763462810050,1.4522,3072.2,3072.1,10.5956861]
[1763462812475,1.4522,3072.2,3072.1,12.34686444]
[1763462812808,0.002,3072.5,3072.2,1.31249664]
[1763462812974,0.002,3072.5,3072.4,0.4779]
[1763462813172,0.002,3072.5,3072.4,1.7884143]
[1763462813173,1.177,3072.5,3072.4,1.7884143]
[1763462813483,1.177,3072.5,3072.4,2.6563183]
[1763462813694,1.177,3072.5,3072.4,4.40618938]
[1763462813908,1.453,3072.5,3072.4,4.43873722]
[1763462814076,0.002,3073.1,3072.5,0.405504]
[1763462814283,1.175,3073.0,3072.8,0.90699264]
[1763462814477,1.175,3073.0,3072.9,0.03254254]
[1763462814676,0.002,3073.1,3072.9,0.03254254]
[1763462814677,0.002,3073.1,3073.0,0.405504]
[1763462814885,1.177,3073.1,3073.0,1.80937716]
[1763462815132,1.177,3073.1,3073.0,1.61488832]
[1763462815482,1.453,3073.1,3073.0,1.61488832]
[1763462816092,1.9405,3073.1,3073.0,0.26908432]
[1763462816293,2.1854,3073.1,3072.7,0.405504]
[1763462816702,1.9405,3073.1,3072.7,0.405504]
[1763462817016,0.002,3072.9,3072.7,0.867904]
[1763462817391,0.002,3072.9,3072.8,0.883404]
[1763462818099,0.4895,3072.9,3072.6,0.405504]
[1763462818936,0.002,3072.9,3072.8,0.4779]
[1763462820512,0.4331,3072.9,3072.6,0.405504]
[1763462820805,0.005,3072.8,3072.6,0.68801394]
[1763462821018,0.276,3072.7,3072.6,0.68801394]
[1763462821547,0.276,3072.7,3072.6,1.16591394]
[1763462822746,0.276,3072.7,3072.6,0.76040994]
[1763462822925,1.006,3072.7,3072.4,0.40352166]
[1763462823125,0.276,3072.7,3072.2,0.90699264]
[1763462823521,0.276,3072.7,3072.3,0.4624]
[1763462823750,0.276,3072.7,3072.4,0.03254784]
[1763462824133,0.276,3072.7,3072.4,0.49494784]
[1763462824338,0.276,3072.7,3072.4,0.03254784]
[1763462824736,0.276,3072.7,3072.4,0.405504]
[1763462824942,0.276,3072.7,3072.4,1.05509131]
[1763462825250,0.276,3072.7,3072.4,0.405504]
[1763462826856,0.276,3072.7,3072.3,0.405504]
[1763462827551,0.276,3072.7,3072.3,1.04312008]
[1763462828121,0.002,3072.9,3072.7,0.405504]
[1763462828332,1.451,3072.8,3072.7,0.405504]
[1763462828632,1.451,3072.8,3072.5,0.405504]
[1763462828817,1.451,3072.8,3072.7,0.891504]
[1763462829019,1.451,3072.8,3072.7,1.0684748]
[1763462829650,0.002,3072.9,3072.8,0.405504]
[1763462829851,1.453,3072.9,3072.8,1.364204]
[1763462832051,1.453,3072.9,3072.8,2.27119664]
[1763462832762,1.4522,3072.9,3072.8,4.01982554]
[1763462832950,1.4522,3072.9,3072.8,4.44275964]
[1763462833255,1.4522,3072.9,3072.8,4.47530324]
[1763462833640,1.4522,3072.9,3072.8,4.44275964]
[1763462834462,1.4522,3072.9,3072.8,4.44669857]
[1763462834650,1.4522,3072.9,3072.8,4.44680572]
[1763462835376,1.4522,3072.9,3072.8,3.97410572]
[1763462835577,1.4522,3072.9,3072.5,12.56041718]
[1763462835578,2.3792,3072.9,3072.5,1.88319495]
[1763462835766,0.4803,3072.6,3072.4,0.001]
[1763462836077,0.283,3072.5,3072.4,0.001]
[1763462836257,0.283,3072.5,3072.4,0.73633237]
[1763462836453,0.7341,3072.5,3072.4,0.73633237]
[1763462836780,0.7341,3072.5,3072.4,0.001]
[1763462837960,1.03947637,3072.5,3072.4,0.001]
[1763462839294,0.7341,3072.5,3072.4,0.001]
[1763462842857,0.7341,3072.5,3072.0,0.001]
[1763462843065,0.2821,3072.1,3072.0,0.001]
[1763462843413,0.5581,3072.1,3072.0,0.001]
[1763462843706,1.0152,3072.1,3072.0,0.001]
[1763462844081,1.31978986,3072.1,3072.0,0.001]
[1763462844268,1.0152,3072.1,3072.0,0.001]
[1763462845503,1.31948582,3072.1,3072.0,0.001]
[1763462845677,1.0152,3072.1,3072.0,0.001]
[1763462848062,3.3652,3072.1,3072.0,0.001]
[1763462849003,2.1902,3072.1,3072.0,0.001]
[1763462855566,1.0152,3072.1,3072.0,0.001]
[1763462855773,1.31913139,3072.1,3072.0,0.001]
[1763462856273,0.405504,3072.0,3071.6,0.001]
[1763462856525,0.1856,3071.7,3071.6,0.001]
[1763462856727,0.4616,3071.7,3071.6,0.001]
[1763462856945,0.9198,3071.7,3071.6,0.001]
[1763462857155,1.22373139,3071.7,3071.6,0.001]
[1763462857509,1.62923539,3071.7,3071.6,0.001]
[1763462858005,2.80423539,3071.7,3071.6,0.001]
[1763462858206,4.88622803,3071.7,3071.6,0.001]
[1763462858711,2.53622803,3071.7,3071.6,0.001]
[1763462861422,2.53594093,3071.7,3071.6,0.001]
[1763462863015,1.85443693,3071.7,3071.6,0.001]
[1763462863215,2.13043693,3071.7,3071.6,0.001]
[1763462863513,1.22344429,3071.7,3071.6,0.001]
[1763462863851,0.30824429,3071.7,3071.6,0.001]
[1763462864052,0.2806,3071.7,3071.6,0.001]
[1763462868190,1.4556,3071.7,3071.6,0.001]
[1763462869473,1.7603654,3071.7,3071.6,0.001]
[1763462874567,1.7603654,3071.7,3071.6,0.4744]
[1763462874769,1.7557654,3071.7,3071.6,0.4744]
[1763462876093,1.7557654,3071.7,3071.6,0.001]
[1763462876294,2.0525654,3071.7,3071.6,0.001]
[1763462876495,2.5091654,3071.7,3071.6,0.001]
[1763462876801,1.7557654,3071.7,3071.6,0.001]
[1763462877764,1.7557654,3071.7,3071.6,0.4744]
[1763462878088,1.7494,3071.7,3071.6,0.001]
[1763462878886,1.451,3071.7,3071.6,0.4744]
[1763462879202,1.451,3071.7,3071.6,0.9327]
[1763462879502,1.451,3071.7,3071.6,0.4744]
[1763462879666,1.175,3071.7,3071.6,0.4744]
[1763462880589,1.175,3071.7,3071.6,0.9327]
[1763462880963,1.451,3071.7,3071.6,0.9327]
[1763462882164,1.451,3071.7,3071.6,0.4744]
[1763462882371,1.7478,3071.7,3071.6,0.001]
[1763462882595,1.451,3071.7,3071.6,0.4744]
[1763462883001,2.2044,3071.7,3071.6,0.001]
[1763462883211,1.33451978,3071.7,3071.6,0.001]
[1763462888304,4.59151242,3071.7,3071.6,0.001]
[1763462889310,1.21211242,3071.7,3071.6,0.001]
[1763462889512,0.88481978,3071.7,3071.6,0.001]
[1763462889805,1.33451978,3071.7,3071.6,0.001]
[1763462890814,0.58111978,3071.7,3071.6,0.4753]
[1763462890998,0.58111978,3071.7,3071.6,0.001]
[1763462891515,0.88481978,3071.7,3071.6,0.001]
[1763462891718,0.88481978,3071.7,3071.6,0.4753]
[1763462891719,0.58111978,3071.7,3071.6,0.4753]
[1763462895422,0.58111978,3071.7,3071.6,0.9416]
[1763462895605,0.30511978,3071.7,3071.6,0.9416]
[1763462895804,0.30511978,3072.0,3071.6,0.9416]
[1763462896115,0.276,3071.7,3071.6,0.001]
[1763462896615,0.276,3071.7,3071.6,0.9416]
[1763462898093,1.451,3071.7,3071.6,0.9416]
[1763462898788,0.0012,3072.1,3071.7,0.405504]
[1763462899017,0.0012,3072.1,3072.0,0.4743]
[1763462899212,1.4522,3072.1,3072.0,0.9406]
[1763462899413,1.4522,3072.1,3072.0,8.56818358]
[1763462899698,1.4522,3072.1,3072.0,9.54741889]
[1763462900204,0.0012,3072.9,3072.2,0.405504]
[1763462900417,0.0012,3072.9,3072.4,7.35049094]
[1763462900803,0.0012,3072.9,3072.7,0.896404]
[1763462900997,1.453,3072.8,3072.7,0.92894866]
[1763462901202,1.453,3072.8,3072.7,1.75510563]
[1763462902234,1.453,3072.8,3072.7,1.34960163]
[1763462902403,1.453,3072.8,3072.7,0.9453]
[1763462902734,1.453,3072.8,3072.7,1.350804]
[1763462903237,1.453,3072.8,3072.7,2.25779664]
[1763462903401,1.4522,3072.8,3072.7,2.25779664]
[1763462903605,1.175,3072.8,3072.7,2.25779664]
[1763462903822,1.175,3072.8,3072.7,3.30400504]
[1763462904702,1.177,3072.8,3072.7,3.30400504]
[1763462904902,1.453,3072.8,3072.7,3.30400504]
[1763462906469,1.453,3072.8,3072.7,2.3970124]
[1763462906763,1.453,3072.8,3072.7,1.350804]
[1763462906944,1.453,3072.8,3072.7,0.4909]
[1763462907118,1.453,3072.8,3072.4,0.139]
[1763462907318,1.453,3072.8,3072.7,0.4909]
[1763462909844,1.453,3072.8,3072.4,0.5934]
[1763462910039,1.453,3072.8,3072.4,0.139]
[1763462910223,1.453,3072.8,3072.2,0.1845]
[1763462910618,1.453,3072.8,3072.2,0.6389]
[1763462910824,1.453,3072.8,3072.0,0.97923531]
[1763462910825,1.9177,3072.8,3072.0,0.97923531]
[1763462911325,1.9177,3072.8,3072.1,0.1845]
[1763462911524,1.9177,3072.8,3072.1,0.36021353]
[1763462912348,0.4647,3072.7,3071.9,0.139]
[1763462912522,0.4647,3072.7,3071.7,0.4544]
[1763462912523,0.4647,3072.7,3071.7,0.6389]
[1763462912722,0.4647,3072.7,3071.8,0.97937277]
[1763462912937,0.4647,3072.7,3071.7,0.6389]
[1763462913167,0.4647,3072.7,3071.7,1.61827277]
[1763462913665,0.4647,3072.7,3071.7,0.6389]
[1763462915470,0.4647,3072.7,3071.7,0.1845]
[1763462915676,0.4647,3072.7,3071.8,0.4544]
[1763462916603,0.29,3071.9,3071.6,0.98041114]
[1763462916741,0.2871,3071.7,3071.6,0.001]
[1763462917264,0.7518,3071.7,3071.6,0.001]
[1763462918273,0.276,3071.8,3071.6,0.9572]
[1763462918474,0.276,3071.8,3071.7,0.4728]
[1763462918974,0.4965,3072.4,3071.7,0.9562]
[1763462919178,1.451,3072.3,3071.7,0.9562]
[1763462919878,1.451,3072.3,3072.2,0.4728]
[1763462920783,1.7062,3072.3,3071.6,0.001]
[1763462920984,0.4941,3072.2,3071.6,0.001]
[1763462921394,1.451,3072.3,3071.6,0.001]
[1763462922567,1.9475,3072.3,3071.6,0.001]
[1763462923309,0.4965,3072.2,3071.6,0.001]
[1763462923895,0.2552,3071.7,3071.6,0.001]
[1763462924092,0.5312,3071.7,3071.6,0.001]
[1763462924677,0.276,3071.7,3071.6,0.4738]
[1763462925094,0.276,3071.7,3071.6,0.9572]
[1763462925299,0.276,3071.7,3071.6,0.001]
[1763462925503,0.5312,3071.7,3071.6,0.001]
[1763462926506,0.276,3071.7,3071.6,0.001]
[1763462926688,0.1835,3071.9,3071.6,0.001]
[1763462926888,0.002,3073.2,3071.8,0.4728]
[1763462927218,0.2536,3071.9,3071.6,0.001]
[1763462927727,0.0049,3071.7,3071.6,0.001]
[1763462928024,0.7774,3071.7,3071.6,0.001]
[1763462928579,1.08186577,3071.7,3071.6,0.001]
[1763462928988,0.7452,3071.6,3071.3,0.001]
[1763462929202,0.0074,3071.4,3071.3,0.001]
[1763462929599,0.5039,3071.4,3071.3,0.001]
[1763462929799,0.80836577,3071.4,3071.3,0.001]
[1763462930511,0.5039,3071.4,3071.2,0.001]
[1763462930735,1.0188,3071.3,3071.2,0.001]
[1763462931018,0.0098,3071.1,3071.0,0.0002]
[1763462931315,0.71976977,3071.1,3071.0,0.0002]
[1763462931484,1.21626977,3071.1,3071.0,0.0002]
[1763462935291,0.405504,3071.0,3069.0,0.6679]
[1763462935506,1.45036977,3071.0,3069.0,0.6679]
[1763462935710,1.45036977,3071.0,3069.0,0.1845]
[1763462935930,1.72636977,3071.0,3069.0,0.1845]
[1763462936228,1.72636977,3071.0,3069.1,0.4834]
[1763462936916,1.72636977,3071.0,3069.0,0.1845]
[1763462937129,1.72636977,3071.0,3069.3,0.4834]
[1763462937815,1.72636977,3071.0,3070.2,0.001]
[1763462938221,0.90699264,3070.9,3070.2,0.001]
[1763462938530,9.71318396,3070.7,3070.2,0.001]
[1763462938720,10.51414973,3070.7,3070.2,0.001]
[1763462939435,2.05789664,3070.6,3070.2,0.001]
[1763462939730,9.53128396,3070.3,3070.2,0.001]
[1763462939929,9.83574973,3070.3,3070.2,0.001]
[1763462940131,10.33224973,3070.3,3070.2,0.001]
[1763462940536,1.72245841,3070.3,3070.2,0.001]
[1763462940834,1.99845841,3070.3,3070.2,0.001]
[1763462941536,1.69399264,3070.3,3070.2,0.001]
[1763462941830,2.40211183,3070.3,3070.2,0.001]
[1763462942002,2.09949664,3070.3,3070.2,0.001]
[1763462942404,2.40207299,3070.3,3070.2,0.001]
[1763462944325,1.19749264,3070.3,3070.2,0.001]
[1763462945924,0.92149264,3070.3,3070.2,0.001]
[1763462946123,1.19749264,3070.3,3070.2,0.001]
[1763462946841,1.68939264,3070.3,3070.2,0.001]
[1763462947145,1.19749264,3070.3,3070.2,0.001]
[1763462948044,1.176,3070.3,3070.2,0.9545]
[1763462948255,2.628,3070.3,3070.2,0.9545]
[1763462948744,1.176,3070.3,3070.2,0.9545]
[1763462949042,1.452,3070.3,3070.2,0.9545]
[1763462949441,1.452,3070.3,3070.2,0.001]
[1763462949850,1.452,3070.3,3070.2,0.4937]
[1763462950463,0.4911,3070.8,3070.2,0.4937]
[1763462950671,0.30273152,3071.0,3070.2,0.9545]
[1763462950847,0.1898,3071.1,3070.2,0.9545]
[1763462951052,0.1898,3071.1,3070.3,0.4608]
[1763462951444,0.276,3071.0,3070.3,0.4608]
[1763462952289,0.276,3071.0,3070.9,0.4927]
[1763462953242,0.5364,3071.0,3070.3,0.4608]
[1763462953448,0.30273152,3070.9,3070.3,0.4608]
[1763462953865,0.30273152,3070.9,3070.8,0.4927]
[1763462954066,0.276,3071.0,3070.8,0.4927]
[1763462954266,0.276,3071.0,3070.9,0.4927]
[1763462954445,0.30359584,3071.0,3070.9,0.4927]
[1763462954652,0.002,3071.1,3070.9,0.4927]
[1763462954963,0.276,3071.0,3070.2,0.001]
[1763462955134,0.276,3071.0,3070.3,0.4927]
[1763462955337,0.276,3071.0,3070.9,0.4927]
[1763462955760,0.276,3071.0,3070.9,0.9535]
[1763462957243,0.58006667,3071.0,3070.9,0.4927]
[1763462957645,0.58006667,3071.0,3070.9,0.9535]
[1763462958050,1.75606667,3071.0,3070.9,0.9535]
[1763462960196,0.30406667,3071.0,3070.9,0.9535]
[1763462960365,1.452,3071.0,3070.9,0.9535]
[1763462960572,0.002,3071.1,3070.9,0.9535]
[1763462960773,0.002,3071.1,3071.0,0.9297]
[1763462961075,1.454,3071.1,3071.0,0.9297]
[1763462961768,2.04605659,3071.1,3070.5,0.4549]
[1763462961969,0.30425659,3071.0,3070.5,0.4549]
[1763462962175,1.7418,3071.1,3070.5,0.4549]
[1763462962383,0.30422327,3071.0,3070.5,0.4549]
[1763462962766,0.30422327,3071.0,3070.9,0.4748]
[1763462962767,0.30411857,3071.0,3070.9,0.4748]
[1763462963812,0.30411857,3071.0,3070.5,0.4549]
[1763462963813,0.59521857,3071.0,3070.5,0.4549]
[1763462964004,0.30411857,3070.9,3070.5,0.4549]
[1763462964367,0.30411857,3071.0,3070.8,0.4748]
[1763462965513,0.30411857,3071.0,3070.2,0.001]
[1763462965514,0.4757,3070.9,3070.2,0.4559]
[1763462965700,0.59521857,3070.9,3070.2,0.4559]
[1763462965891,0.30411857,3070.9,3070.8,0.4748]
[1763462966080,0.58211857,3071.1,3070.8,0.4748]
[1763462966281,0.2928,3070.9,3070.2,0.001]
[1763462966705,0.4588,3070.8,3070.2,0.001]
[1763462966923,0.276,3070.7,3070.2,0.001]
[1763462967118,0.58011857,3070.7,3070.2,0.001]
[1763462967322,0.2894,3070.3,3070.2,0.001]
[1763462967524,0.5654,3070.3,3070.2,0.001]
[1763462968183,2.9174,3070.3,3070.2,0.001]
[1763462968614,2.9174,3070.3,3070.2,0.9307]
[1763462968615,2.628,3070.3,3070.2,0.9307]
[1763462969397,2.628,3070.3,3070.2,0.4758]
[1763462970201,2.628,3070.3,3070.2,0.9307]
[1763462970510,2.628,3070.3,3070.2,0.4758]
[1763462970931,2.5096088,3070.3,3070.2,0.001]
[1763462971087,1.3336088,3070.3,3070.2,0.001]
[1763462971421,1.0738088,3070.3,3070.2,0.001]
[1763462972813,1.3336088,3070.3,3070.2,0.001]
[1763462973915,1.0568088,3070.3,3070.2,0.001]
[1763462974905,1.3328088,3070.3,3070.2,0.001]
[1763462975094,2.43951682,3070.3,3070.2,0.001]
[1763462975788,3.34650946,3070.3,3070.2,0.001]
[1763462977492,4.22516903,3070.3,3070.2,0.001]
[1763462978315,6.57716903,3070.3,3070.2,0.001]
[1763462978888,2.15694606,3070.2,3069.8,0.001]
[1763462979087,10.39022773,3069.9,3069.8,0.001]
[1763462979309,12.93157955,3069.9,3069.8,0.001]
[1763462979503,13.00173013,3069.9,3069.8,0.001]
[1763462980113,12.51318997,3069.9,3069.8,0.001]
[1763462980298,13.3875545,3069.9,3069.8,0.001]
[1763462980510,12.51318997,3069.9,3069.8,0.001]
[1763462980705,12.91473164,3069.9,3069.8,0.001]
[1763462981322,2.09988773,3069.8,3067.9,0.4688]
[1763462981652,0.419904,3069.6,3067.9,0.4688]
[1763462981844,1.63080544,3069.6,3067.9,0.4688]
[1763462982143,2.26686624,3069.6,3067.9,0.4688]
[1763462983226,2.26686624,3069.6,3068.1,0.4688]
[1763462986742,1.88101682,3069.6,3068.4,0.4688]
[1763462987111,1.1798128,3069.6,3068.4,0.4688]
[1763462987909,1.1654128,3069.6,3068.4,0.4688]
[1763462988135,4.70665904,3069.6,3068.1,0.4688]
[1763462988369,2.65690546,3069.6,3067.6,0.1884]
[1763462988672,2.93290546,3069.6,3067.9,0.4688]
[1763462988872,2.93290546,3069.6,3069.1,0.001]
[1763462989090,3.78755488,3069.6,3069.1,0.001]
[1763462989453,0.90699264,3069.5,3069.1,0.001]
[1763462989666,0.90699264,3069.5,3067.8,0.4688]
[1763462989667,0.90699264,3068.8,3067.8,0.4688]
[1763462989854,8.44064315,3068.2,3067.0,0.4688]
[1763462990040,0.276,3068.1,3067.0,0.4688]
[1763462990447,0.276,3068.1,3068.0,0.6414]
[1763462991276,0.30234713,3068.5,3068.0,0.6414]
[1763462991277,0.30234713,3068.5,3068.0,1.1102]
[1763462991577,0.276,3068.4,3068.1,0.4688]
[1763462991982,0.276,3068.4,3068.3,0.4613]
[1763462992280,0.276,3068.4,3068.0,0.1801]
[1763462992483,0.276,3068.4,3068.3,0.4613]
[1763462993276,0.276,3068.4,3068.3,0.9301]
[1763462994344,0.276,3068.4,3068.3,0.4613]
[1763462994645,0.276,3068.4,3068.3,0.9301]
[1763462995276,0.5811,3068.4,3068.1,0.1801]
[1763462995488,0.276,3068.4,3068.3,0.4613]
[1763462996415,0.276,3068.4,3068.3,0.45192]
[1763462996900,0.5904,3068.4,3068.1,0.1801]
[1763462997086,0.276,3068.4,3068.1,0.1801]
[1763462997403,0.75810725,3068.5,3067.9,0.6489]
[1763462997770,0.75810725,3068.5,3067.9,0.1801]
[1763462998083,2.354,3068.4,3067.9,0.1801]
[1763462998492,0.456,3068.3,3067.7,0.4688]
[1763462998681,0.732,3068.3,3067.7,0.4688]
[1763462998880,0.276,3068.3,3067.6,0.4688]
[1763462999803,0.732,3068.3,3067.6,0.4688]
[1763463000175,0.276,3068.3,3067.6,0.4688]
[1763463000572,0.732,3068.3,3067.3,0.4688]
[1763463000772,0.861504,3068.2,3066.9,0.182]
[1763463001079,0.405504,3068.0,3066.9,0.6508]
[1763463001280,0.4962,3067.0,3066.0,0.1801]
[1763463001481,0.66184942,3066.9,3066.1,0.4688]
[1763463001690,0.405504,3066.8,3066.0,0.1801]
[1763463001874,0.3171,3066.1,3065.7,0.4688]
[1763463002074,0.1168,3065.8,3065.2,0.1801]
[1763463002370,0.276,3065.7,3064.9,0.4688]
[1763463002578,0.276,3065.6,3064.9,0.4688]
[1763463002775,0.276,3065.6,3064.8,0.1801]
[1763463002970,0.276,3065.6,3065.5,0.6414]
[1763463003182,0.276,3065.6,3065.5,1.1102]
[1763463004795,0.405504,3066.2,3065.5,1.1102]
[1763463004994,0.276,3066.1,3065.5,1.1102]
[1763463005199,0.276,3066.1,3065.6,0.4688]
[1763463005421,0.276,3066.1,3066.0,0.4613]
[1763463005918,0.276,3066.1,3066.0,0.9301]
[1763463006228,0.276,3066.1,3065.6,0.4705]
[1763463006535,0.6662,3067.0,3066.0,0.9612]
[1763463006682,1.165904,3066.9,3066.0,0.9612]
[1763463006886,0.4844,3066.8,3066.1,0.1885]
[1763463007117,0.405504,3066.7,3066.0,0.4907]
[1763463007392,0.405504,3066.7,3065.6,0.4705]
[1763463007727,0.276,3066.9,3065.6,0.4705]
[1763463007728,0.4844,3066.6,3065.6,0.4705]
[1763463008224,3.26099264,3066.5,3065.6,0.4705]
[1763463008407,0.276,3066.4,3065.6,0.4705]
[1763463008922,1.453,3066.3,3065.6,0.4705]
[1763463009120,0.276,3066.3,3065.6,0.4705]
[1763463010791,0.4844,3066.2,3065.5,0.1811]
[1763463011024,0.78606347,3066.2,3065.5,0.1811]
[1763463011227,0.78606347,3066.2,3065.5,0.001]
[1763463011391,0.4784,3065.6,3065.5,0.001]
[1763463011594,0.276,3065.6,3065.5,0.4917]
[1763463011793,0.276,3065.6,3065.5,0.9622]
[1763463015712,0.276,3065.6,3065.5,0.4917]
[1763463015910,0.276,3065.6,3065.5,0.001]
[1763463016112,0.276,3065.6,3065.5,0.9622]
[1763463017519,0.276,3065.6,3065.5,0.4917]
[1763463018168,2.63,3065.6,3065.5,0.9622]
[1763463018751,10.56437383,3065.6,3065.5,0.001]
[1763463018954,10.96987783,3065.6,3065.5,0.001]
[1763463020632,10.96987783,3065.6,3065.1,0.001]
[1763463020633,1.31249664,3065.5,3065.1,0.001]
[1763463020833,9.56420378,3065.2,3065.1,0.001]
[1763463021033,9.56420378,3065.2,3062.0,5.38117498]
[1763463021034,2.11247069,3065.2,3062.9,0.6417]
[1763463021242,0.276,3065.6,3063.1,0.4616]
[1763463021243,0.90699264,3064.4,3063.1,0.4616]
[1763463021559,0.277,3064.3,3063.1,0.4616]
[1763463021729,0.9704,3064.3,3063.1,0.4616]
[1763463021933,0.90699264,3064.4,3063.1,0.4616]
[1763463022271,0.90699264,3064.0,3063.1,0.4616]
[1763463022761,0.90699264,3063.6,3062.8,0.4616]
[1763463022976,0.277,3063.5,3062.9,0.4616]
[1763463023569,0.277,3063.5,3062.0,0.1885]
[1763463023570,0.277,3063.5,3062.7,0.4616]
[1763463023870,0.7728,3063.5,3062.7,0.4616]
[1763463024171,0.7728,3063.5,3062.0,0.1885]
[1763463024172,0.90699264,3063.2,3062.0,0.1885]
[1763463024333,0.90699264,3063.2,3062.3,0.4616]
[1763463024668,0.4958,3063.2,3062.3,0.4616]
[1763463024869,0.901304,3063.1,3062.0,0.6501]
[1763463025081,0.277,3063.0,3062.0,0.6501]
[1763463025245,0.277,3063.0,3062.1,0.4616]
[1763463025638,0.277,3063.0,3062.7,0.001]
[1763463025847,0.1818,3062.9,3062.7,0.001]
[1763463026052,0.2438,3062.8,3062.7,0.001]
[1763463026291,2.04959664,3062.8,3062.7,0.001]
[1763463026439,1.55629664,3062.8,3062.7,0.001]
[1763463026638,1.8573031,3062.8,3062.7,0.001]
[1763463027183,2.3506031,3062.8,3062.7,0.001]
[1763463028237,3.8056031,3062.8,3062.7,0.001]
[1763463028443,2.6276031,3062.8,3062.7,0.001]
[1763463029082,0.90699264,3063.2,3062.7,0.4813]
[1763463029253,0.277,3062.8,3062.7,0.4626]
[1763463029649,0.277,3062.8,3062.7,0.9429]
[1763463032086,0.69424245,3064.0,3062.7,0.9429]
[1763463032269,0.74149363,3063.9,3062.8,0.4616]
[1763463032469,0.57829363,3063.8,3062.8,0.4616]
[1763463032782,0.277,3063.8,3062.8,0.4616]
[1763463033201,0.1632,3063.9,3062.8,0.4616]
[1763463033478,0.4958,3064.7,3063.8,0.4803]
[1763463033647,0.277,3064.6,3063.8,0.4803]
[1763463034055,0.277,3064.6,3063.9,0.4616]
[1763463035271,0.3011743,3064.9,3064.5,0.6359]
[1763463035589,0.277,3064.8,3064.5,0.6359]
[1763463035751,0.277,3064.8,3064.7,0.4803]
[1763463035956,0.277,3064.8,3064.7,0.9469]
[1763463036152,0.277,3064.8,3064.7,0.4803]
[1763463036483,0.277,3064.8,3064.5,0.1556]
[1763463037030,0.277,3064.8,3064.7,0.4848]
[1763463037376,0.277,3064.8,3064.7,0.9514]
[1763463038226,1.455,3064.8,3064.7,0.9514]
[1763463042580,1.178,3065.6,3064.7,0.9514]
[1763463042809,1.178,3064.8,3064.5,0.1556]
[1763463042988,0.277,3064.7,3064.5,0.1556]
[1763463043312,0.277,3064.7,3064.6,0.4666]
[1763463043497,0.277,3064.7,3064.6,0.9514]
[1763463044286,1.178,3064.7,3064.6,0.9514]
[1763463045417,0.0012,3065.1,3064.6,0.9514]
[1763463045618,0.0012,3065.1,3065.0,0.4848]
[1763463045857,0.2782,3065.1,3065.0,0.9514]
[1763463046351,0.0012,3065.1,3065.0,0.9514]
[1763463046561,0.0012,3065.1,3065.0,1.13723926]
[1763463046562,0.2782,3065.1,3065.0,1.13723926]
[1763463048066,1.4562,3065.1,3065.0,1.13723926]
[1763463050957,0.0012,3065.1,3065.0,1.13723926]
[1763463051161,1.4562,3065.1,3065.0,1.13723926]
[1763463054197,0.0012,3065.1,3065.0,1.13723926]
[1763463054343,0.0012,3065.1,3065.0,1.54274326]
[1763463054344,1.1792,3065.1,3065.0,1.54274326]
[1763463054549,0.4615,3066.8,3065.1,0.405504]
[1763463054751,1.178,3066.7,3066.0,0.4848]
[1763463055393,1.178,3066.7,3066.1,0.6504]
[1763463055841,0.277,3066.6,3066.1,0.6504]
[1763463056992,0.277,3066.6,3066.2,0.4666]
[1763463057795,0.277,3066.6,3066.5,0.4848]
[1763463058339,0.277,3066.6,3066.5,0.9514]
[1763463061278,1.178,3067.9,3066.6,0.405504]
[1763463061458,1.455,3067.8,3066.7,0.69298966]
[1763463061678,1.9165,3067.8,3066.8,0.4666]
[1763463061879,0.4615,3067.7,3066.3,0.4666]
[1763463062265,0.76431157,3067.7,3066.3,0.4666]
[1763463062572,2.354,3067.6,3066.4,0.405504]